[Event "*** Titled Tuesday Blitz"]
[Site "Chess.com"]
[Date "2020.05.12"]
[Round "10"]
[White "ajdemipopushi"]
[Black "Andrii_Prydun"]
[Result "0-1"]
[WhiteElo "2236"]
[BlackElo "2431"]
[TimeControl "180+1"]
[EndTime "11:54:05 PDT"]
[Termination "Andrii_Prydun won on time"]

1. Nf3 {[%clk 0:03:00.9]} 1... Nf6 {[%clk 0:02:58.7]} 2. g3 {[%clk 0:03:00.7]}
2... d6 {[%clk 0:02:57.4]} 3. d4 {[%clk 0:03:00.3]} 3... Bg4 {[%clk 0:02:57.4]}
4. Bg2 {[%clk 0:02:59.7]} 4... Bxf3 {[%clk 0:02:56.6]} 5. Bxf3 {[%clk
0:02:59.7]} 5... c6 {[%clk 0:02:57.1]} 6. O-O {[%clk 0:02:58.9]} 6... g6 {[%clk
0:02:57.7]} 7. c4 {[%clk 0:02:58.7]} 7... Bg7 {[%clk 0:02:58.1]} 8. Nc3 {[%clk
0:02:58.4]} 8... O-O {[%clk 0:02:58.5]} 9. b3 {[%clk 0:02:50]} 9... Nbd7 {[%clk
0:02:47.6]} 10. Bb2 {[%clk 0:02:50]} 10... a6 {[%clk 0:02:46]} 11. Qc2 {[%clk
0:02:47.8]} 11... Rc8 {[%clk 0:02:43.9]} 12. Rad1 {[%clk 0:02:42.9]} 12... b5
{[%clk 0:02:43.5]} 13. h4 {[%clk 0:02:39.8]} 13... bxc4 {[%clk 0:02:37]} 14.
bxc4 {[%clk 0:02:39]} 14... Nb6 {[%clk 0:02:36.2]} 15. c5 {[%clk 0:02:27]} 15...
Nc4 {[%clk 0:02:36.3]} 16. Ba1 {[%clk 0:02:25.1]} 16... d5 {[%clk 0:02:30.7]}
17. e4 {[%clk 0:02:16.8]} 17... e6 {[%clk 0:02:29.4]} 18. e5 {[%clk 0:02:16.4]}
18... Ne8 {[%clk 0:02:29.3]} 19. Be2 {[%clk 0:02:12.4]} 19... f6 {[%clk
0:02:16.4]} 20. Bxc4 {[%clk 0:01:52.2]} 20... dxc4 {[%clk 0:02:16.4]} 21. f4
{[%clk 0:01:51.5]} 21... Nc7 {[%clk 0:02:14.5]} 22. Ne4 {[%clk 0:01:47.6]} 22...
Qd5 {[%clk 0:02:12.8]} 23. Nd6 {[%clk 0:01:44.5]} 23... Rb8 {[%clk 0:02:00.1]}
24. Nxc4 {[%clk 0:01:26.9]} 24... Rb5 {[%clk 0:01:49.1]} 25. Nb6 {[%clk
0:01:25.9]} 25... Qd8 {[%clk 0:01:41.7]} 26. a4 {[%clk 0:01:24.7]} 26... Rb4
{[%clk 0:01:29.3]} 27. Bc3 {[%clk 0:01:24]} 27... Rxb6 {[%clk 0:01:29.8]} 28.
cxb6 {[%clk 0:01:23.7]} 28... Nd5 {[%clk 0:01:30.7]} 29. a5 {[%clk 0:01:16.6]}
29... g5 {[%clk 0:01:17.4]} 30. fxg5 {[%clk 0:01:10.9]} 30... fxe5 {[%clk
0:01:17.3]} 31. Rxf8+ {[%clk 0:00:34.2]} 31... Qxf8 {[%clk 0:01:18.2]} 32. Rf1
{[%clk 0:00:29.8]} 32... Qa3 {[%clk 0:01:15.4]} 33. Qf2 {[%clk 0:00:20.1]} 33...
Qe7 {[%clk 0:01:01.4]} 34. Bb2 {[%clk 0:00:14.7]} 34... e4 {[%clk 0:00:44.9]}
35. Ba3 {[%clk 0:00:11.5]} 35... Qd7 {[%clk 0:00:40]} 36. Bc5 {[%clk 0:00:10.4]}
36... e3 {[%clk 0:00:31.6]} 37. Qf3 {[%clk 0:00:10.4]} 37... h6 {[%clk 0:00:21]}
38. g6 {[%clk 0:00:09.3]} 38... Bf6 {[%clk 0:00:18.2]} 39. Qh5 {[%clk
0:00:06.8]} 39... Kg7 {[%clk 0:00:18.4]} 40. Bf8+ {[%clk 0:00:04.5]} 40... Kxf8
{[%clk 0:00:18.2]} 41. Rxf6+ {[%clk 0:00:04.6]} 41... Nxf6 {[%clk 0:00:18]} 42.
Qxh6+ {[%clk 0:00:04.5]} 42... Kg8 {[%clk 0:00:18.3]} 43. Qg5 {[%clk 0:00:04]}
43... Qxd4 {[%clk 0:00:17]} 44. g7 {[%clk 0:00:01.9]} 44... e2+ {[%clk
0:00:16.5]} 45. Kg2 {[%clk 0:00:02.4]} 45... e1=Q {[%clk 0:00:16.6]} 0-1

[Event "*** Titled Tuesday Blitz"]
[Site "Chess.com"]
[Date "2020.05.12"]
[Round "10"]
[White "Hasangatin_Ramil"]
[Black "sergeikim"]
[Result "1-0"]
[WhiteElo "2566"]
[BlackElo "2440"]
[TimeControl "180+1"]
[EndTime "11:54:06 PDT"]
[Termination "Hasangatin_Ramil won on time"]

1. d4 {[%clk 0:03:00.9]} 1... Nf6 {[%clk 0:02:58.8]} 2. Bf4 {[%clk 0:03:01.2]}
2... g6 {[%clk 0:02:59.7]} 3. Nc3 {[%clk 0:03:00.6]} 3... d6 {[%clk 0:02:56.2]}
4. e4 {[%clk 0:03:00.4]} 4... Bg7 {[%clk 0:02:56]} 5. Nf3 {[%clk 0:03:00.6]}
5... c6 {[%clk 0:02:55.5]} 6. a4 {[%clk 0:02:59.3]} 6... a5 {[%clk 0:02:54.2]}
7. Be2 {[%clk 0:02:59]} 7... O-O {[%clk 0:02:52.5]} 8. O-O {[%clk 0:02:59.5]}
8... Qc7 {[%clk 0:02:48.3]} 9. Qd2 {[%clk 0:02:59]} 9... Na6 {[%clk 0:02:46.3]}
10. e5 {[%clk 0:02:57]} 10... Nd5 {[%clk 0:02:39.3]} 11. Nxd5 {[%clk 0:02:43]}
11... cxd5 {[%clk 0:02:40.2]} 12. exd6 {[%clk 0:02:34.2]} 12... exd6 {[%clk
0:02:39.2]} 13. Bh6 {[%clk 0:02:34.3]} 13... Bg4 {[%clk 0:02:29.8]} 14. Bxg7
{[%clk 0:02:33.6]} 14... Kxg7 {[%clk 0:02:28.9]} 15. c3 {[%clk 0:02:33.8]} 15...
Qb6 {[%clk 0:02:10.6]} 16. h3 {[%clk 0:02:29.9]} 16... Bxf3 {[%clk 0:02:08.5]}
17. Bxf3 {[%clk 0:02:29.3]} 17... Nc7 {[%clk 0:02:08.9]} 18. Rfe1 {[%clk
0:02:26.2]} 18... Rfe8 {[%clk 0:02:05.7]} 19. Rxe8 {[%clk 0:02:17.7]} 19... Rxe8
{[%clk 0:02:03.2]} 20. b4 {[%clk 0:02:17.9]} 20... axb4 {[%clk 0:01:44.3]} 21.
cxb4 {[%clk 0:02:18.8]} 21... Ne6 {[%clk 0:01:44.5]} 22. Rd1 {[%clk 0:02:12.8]}
22... Qc6 {[%clk 0:01:37]} 23. Qa2 {[%clk 0:01:40.9]} 23... Nf4 {[%clk
0:01:27.8]} 24. g3 {[%clk 0:01:19]} 24... Qc3 {[%clk 0:01:13.7]} 25. Bxd5 {[%clk
0:00:42.3]} 25... Re2 {[%clk 0:01:09.9]} 26. Qc4 {[%clk 0:00:42.1]} 26... Nxh3+
{[%clk 0:00:54]} 27. Kg2 {[%clk 0:00:41.7]} 27... Rxf2+ {[%clk 0:00:42.8]} 28.
Kxh3 {[%clk 0:00:41.4]} 28... Qb2 {[%clk 0:00:26.2]} 29. Rh1 {[%clk 0:00:41.6]}
29... h5 {[%clk 0:00:20.2]} 30. Bxb7 {[%clk 0:00:29.2]} 30... Qd2 {[%clk
0:00:12.4]} 31. Qd5 {[%clk 0:00:23.4]} 31... h4 {[%clk 0:00:10]} 32. Qxd6 {[%clk
0:00:13.8]} 32... hxg3 {[%clk 0:00:05.4]} 33. Qe5+ {[%clk 0:00:13.6]} 33... Kg8
{[%clk 0:00:04.3]} 34. Qxg3 {[%clk 0:00:07.9]} 34... Re2 {[%clk 0:00:03.4]} 35.
Bf3 {[%clk 0:00:06.2]} 35... Re3 {[%clk 0:00:02.7]} 36. Rf1 {[%clk 0:00:05.4]}
36... Qxd4 {[%clk 0:00:01.9]} 37. Kg2 {[%clk 0:00:05.1]} 37... Qd3 {[%clk
0:00:01.2]} 38. Rf2 {[%clk 0:00:05.2]} 1-0

[Event "*** Titled Tuesday Blitz"]
[Site "Chess.com"]
[Date "2020.05.12"]
[Round "10"]
[White "Mikhail_Golubev"]
[Black "Oligan22"]
[Result "0-1"]
[WhiteElo "2507"]
[BlackElo "2409"]
[TimeControl "180+1"]
[EndTime "11:54:06 PDT"]
[Termination "Oligan22 won on time"]

1. e4 {[%clk 0:03:00.9]} 1... c5 {[%clk 0:02:59.3]} 2. Nf3 {[%clk 0:03:00.1]}
2... e6 {[%clk 0:02:59.5]} 3. d4 {[%clk 0:02:59.7]} 3... cxd4 {[%clk 0:03:00.4]}
4. Nxd4 {[%clk 0:03:00]} 4... Nc6 {[%clk 0:03:00.9]} 5. Nc3 {[%clk 0:02:58.5]}
5... Qc7 {[%clk 0:03:01.4]} 6. Be3 {[%clk 0:02:56.9]} 6... a6 {[%clk 0:03:00.8]}
7. a3 {[%clk 0:02:55.8]} 7... Nf6 {[%clk 0:03:01.2]} 8. f4 {[%clk 0:02:55.5]}
8... d6 {[%clk 0:02:59.4]} 9. Qf3 {[%clk 0:02:54.6]} 9... Bd7 {[%clk 0:02:56.3]}
10. Bd3 {[%clk 0:02:53.2]} 10... Be7 {[%clk 0:02:45.3]} 11. O-O-O {[%clk
0:02:46.5]} 11... Rc8 {[%clk 0:02:28.5]} 12. Nb3 {[%clk 0:02:21.8]} 12... b5
{[%clk 0:02:22.9]} 13. g4 {[%clk 0:02:19.8]} 13... h6 {[%clk 0:01:39.7]} 14.
Rhe1 {[%clk 0:02:02.5]} 14... b4 {[%clk 0:01:38.3]} 15. axb4 {[%clk 0:02:01]}
15... Nxb4 {[%clk 0:01:39.2]} 16. h4 {[%clk 0:01:55.8]} 16... a5 {[%clk
0:01:21.3]} 17. g5 {[%clk 0:01:54]} 17... hxg5 {[%clk 0:01:20.6]} 18. hxg5
{[%clk 0:01:53.9]} 18... Nh5 {[%clk 0:01:20.8]} 19. g6 {[%clk 0:01:41.4]} 19...
fxg6 {[%clk 0:01:20.6]} 20. Qg2 {[%clk 0:01:31.6]} 20... a4 {[%clk 0:00:52.4]}
21. Qxg6+ {[%clk 0:01:06.6]} 21... Kd8 {[%clk 0:00:52.4]} 22. Nd4 {[%clk
0:00:54.2]} 22... Rh6 {[%clk 0:00:51.9]} 23. Qf7 {[%clk 0:00:49.6]} 23... a3
{[%clk 0:00:43.3]} 24. Qg8+ {[%clk 0:00:48.9]} 24... Be8 {[%clk 0:00:43.6]} 25.
Nxe6+ {[%clk 0:00:45.7]} 25... Rxe6 {[%clk 0:00:43.4]} 26. Qxe6 {[%clk
0:00:45.5]} 26... axb2+ {[%clk 0:00:43.7]} 27. Kb1 {[%clk 0:00:44.9]} 27... Qxc3
{[%clk 0:00:41.8]} 28. Bb6+ {[%clk 0:00:41.9]} 28... Rc7 {[%clk 0:00:41.5]} 29.
e5 {[%clk 0:00:29.8]} 29... Nxf4 {[%clk 0:00:18]} 30. Bxc7+ {[%clk 0:00:22.3]}
30... Qxc7 {[%clk 0:00:18.9]} 31. exd6 {[%clk 0:00:20.5]} 31... Qxd6 {[%clk
0:00:11.7]} 32. Qxd6+ {[%clk 0:00:10.5]} 32... Bxd6 {[%clk 0:00:12.6]} 33. Bf1
{[%clk 0:00:07.2]} 33... Nbd5 {[%clk 0:00:08.7]} 34. Re4 {[%clk 0:00:04.8]}
34... Nc3+ {[%clk 0:00:08.4]} 35. Kxb2 {[%clk 0:00:04.3]} 35... Nxe4 {[%clk
0:00:08.9]} 36. Re1 {[%clk 0:00:03.3]} 36... Bc6 {[%clk 0:00:08.3]} 37. Bd3
{[%clk 0:00:02.3]} 37... Nc5 {[%clk 0:00:06.9]} 38. Bh7 {[%clk 0:00:01.3]} 38...
Kd7 {[%clk 0:00:06.3]} 39. Kc3 {[%clk 0:00:01.2]} 39... Nce6 {[%clk 0:00:05.2]}
40. Kb2 {[%clk 0:00:01]} 40... Ke7 {[%clk 0:00:05.6]} 0-1

[Event "*** Titled Tuesday Blitz"]
[Site "Chess.com"]
[Date "2020.05.12"]
[Round "10"]
[White "Alopekos"]
[Black "Richarzard69"]
[Result "1-0"]
[WhiteElo "2458"]
[BlackElo "2272"]
[TimeControl "180+1"]
[EndTime "11:54:06 PDT"]
[Termination "Alopekos won by checkmate"]

1. e4 {[%clk 0:03:00.9]} 1... e6 {[%clk 0:03:00.1]} 2. d4 {[%clk 0:03:00.8]}
2... d5 {[%clk 0:03:00.6]} 3. Nc3 {[%clk 0:03:01]} 3... Bb4 {[%clk 0:03:00.3]}
4. e5 {[%clk 0:03:01]} 4... c5 {[%clk 0:02:59.6]} 5. a3 {[%clk 0:03:01.6]} 5...
Bxc3+ {[%clk 0:02:59.5]} 6. bxc3 {[%clk 0:03:02.5]} 6... Ne7 {[%clk 0:02:59.8]}
7. Qg4 {[%clk 0:03:02.9]} 7... Qc7 {[%clk 0:02:59.7]} 8. Qxg7 {[%clk 0:03:02.8]}
8... Rg8 {[%clk 0:03:00]} 9. Qxh7 {[%clk 0:03:03.4]} 9... cxd4 {[%clk
0:03:00.5]} 10. Ne2 {[%clk 0:03:04]} 10... dxc3 {[%clk 0:03:00.7]} 11. f4 {[%clk
0:03:03.8]} 11... Nbc6 {[%clk 0:03:00.2]} 12. Qd3 {[%clk 0:03:04.2]} 12... d4
{[%clk 0:02:54]} 13. Nxd4 {[%clk 0:03:04.4]} 13... Nxd4 {[%clk 0:02:52.4]} 14.
Qxd4 {[%clk 0:03:05.3]} 14... Bd7 {[%clk 0:02:51.2]} 15. Rg1 {[%clk 0:03:00.2]}
15... Nf5 {[%clk 0:02:51.3]} 16. Qf2 {[%clk 0:02:58.7]} 16... Qc6 {[%clk
0:02:50.3]} 17. g4 {[%clk 0:02:51]} 17... Qe4+ {[%clk 0:02:09.3]} 18. Qe2 {[%clk
0:02:44]} 18... Qd4 {[%clk 0:01:51.6]} 19. Qf2 {[%clk 0:02:30.6]} 19... Qe4+
{[%clk 0:01:40.8]} 20. Qe2 {[%clk 0:02:25.2]} 20... Qd4 {[%clk 0:01:37.6]} 21.
Rg2 {[%clk 0:02:22.4]} 21... Nh4 {[%clk 0:01:13.3]} 22. Rg3 {[%clk 0:02:12.1]}
22... Bc6 {[%clk 0:01:02.9]} 23. Rh3 {[%clk 0:00:42.6]} 23... Ng6 {[%clk
0:00:46.9]} 24. Qf2 {[%clk 0:00:28.4]} 24... Qe4+ {[%clk 0:00:40.1]} 25. Be3
{[%clk 0:00:27.5]} 25... O-O-O {[%clk 0:00:37.4]} 26. Bd3 {[%clk 0:00:27]} 26...
Rxd3 {[%clk 0:00:32.4]} 27. cxd3 {[%clk 0:00:25.3]} 27... Qxd3 {[%clk
0:00:33.3]} 28. Rc1 {[%clk 0:00:14.6]} 28... Rd8 {[%clk 0:00:29.3]} 29. Qe2
{[%clk 0:00:12.1]} 29... Nxf4 {[%clk 0:00:22.2]} 30. Bxf4 {[%clk 0:00:07.6]}
30... Qxh3 {[%clk 0:00:22.2]} 31. Bg3 {[%clk 0:00:08]} 31... Qh7 {[%clk
0:00:17.6]} 32. Rxc3 {[%clk 0:00:07.8]} 32... Qb1+ {[%clk 0:00:17.7]} 33. Kf2
{[%clk 0:00:08.3]} 33... Qb6+ {[%clk 0:00:15.8]} 34. Re3 {[%clk 0:00:04]} 34...
Kb8 {[%clk 0:00:14.9]} 35. h4 {[%clk 0:00:03.6]} 35... Bb5 {[%clk 0:00:15.1]}
36. Qe1 {[%clk 0:00:03.1]} 36... Rd3 {[%clk 0:00:14]} 37. Bf4 {[%clk 0:00:03.5]}
37... Qd4 {[%clk 0:00:13.3]} 38. Kg3 {[%clk 0:00:04]} 38... Bc6 {[%clk
0:00:09.2]} 39. Rxd3 {[%clk 0:00:03.5]} 39... Qxd3+ {[%clk 0:00:09.7]} 40. Qe3
{[%clk 0:00:03.9]} 40... Qf1 {[%clk 0:00:09.8]} 41. Qf2 {[%clk 0:00:04.3]} 41...
Qh1 {[%clk 0:00:09.7]} 42. h5 {[%clk 0:00:03.7]} 42... Qe4 {[%clk 0:00:09.2]}
43. h6 {[%clk 0:00:03.8]} 43... Qg6 {[%clk 0:00:09.3]} 44. Qd4 {[%clk
0:00:03.8]} 44... Qb1 {[%clk 0:00:08.5]} 45. Qd8# {[%clk 0:00:03.2]} 1-0

[Event "*** Titled Tuesday Blitz"]
[Site "Chess.com"]
[Date "2020.05.12"]
[Round "10"]
[White "annacramling"]
[Black "baby_leo"]
[Result "0-1"]
[WhiteElo "1862"]
[BlackElo "2073"]
[TimeControl "180+1"]
[EndTime "11:54:06 PDT"]
[Termination "baby_leo won on time"]

1. d4 {[%clk 0:03:00.9]} 1... Nf6 {[%clk 0:02:58.5]} 2. c4 {[%clk 0:03:01.2]}
2... e5 {[%clk 0:02:56.5]} 3. Nc3 {[%clk 0:03:01.8]} 3... exd4 {[%clk
0:02:55.2]} 4. Qxd4 {[%clk 0:03:01.9]} 4... Nc6 {[%clk 0:02:55.6]} 5. Qd2 {[%clk
0:03:01.5]} 5... Bc5 {[%clk 0:02:48.4]} 6. e3 {[%clk 0:02:53.6]} 6... O-O {[%clk
0:02:46.8]} 7. Nf3 {[%clk 0:02:53.5]} 7... a5 {[%clk 0:02:45.8]} 8. Bd3 {[%clk
0:02:41.3]} 8... Ra6 {[%clk 0:02:42.4]} 9. b3 {[%clk 0:02:36.8]} 9... Nb4 {[%clk
0:02:36.9]} 10. O-O {[%clk 0:02:31]} 10... Rd6 {[%clk 0:02:29.7]} 11. Ne1 {[%clk
0:02:02.5]} 11... b6 {[%clk 0:02:16.5]} 12. a3 {[%clk 0:01:59.3]} 12... Nxd3
{[%clk 0:02:12.5]} 13. Nxd3 {[%clk 0:01:58.9]} 13... Bb7 {[%clk 0:02:13.4]} 14.
Qe2 {[%clk 0:01:52.7]} 14... Ne4 {[%clk 0:01:45.9]} 15. Nxe4 {[%clk 0:01:41.7]}
15... Bxe4 {[%clk 0:01:43.1]} 16. Nxc5 {[%clk 0:01:41.4]} 16... bxc5 {[%clk
0:01:36.7]} 17. Rd1 {[%clk 0:01:18.9]} 17... Qg5 {[%clk 0:01:30.3]} 18. f3
{[%clk 0:01:13.5]} 18... Rxd1+ {[%clk 0:01:22.7]} 19. Qxd1 {[%clk 0:01:12.6]}
19... Qe5 {[%clk 0:01:16.5]} 20. Bd2 {[%clk 0:00:53.5]} 20... Bc2 {[%clk
0:01:06.1]} 21. Qe1 {[%clk 0:00:32.8]} 21... Bxb3 {[%clk 0:01:00.7]} 22. Bc3
{[%clk 0:00:30.1]} 22... Qe6 {[%clk 0:00:51.2]} 23. Bxa5 {[%clk 0:00:22.4]}
23... Bxc4 {[%clk 0:00:37.1]} 24. Bxc7 {[%clk 0:00:20.8]} 24... d5 {[%clk
0:00:35.1]} 25. Rc1 {[%clk 0:00:14.2]} 25... Re8 {[%clk 0:00:33.9]} 26. Bf4
{[%clk 0:00:13.6]} 26... h6 {[%clk 0:00:31.4]} 27. h4 {[%clk 0:00:10.1]} 27...
d4 {[%clk 0:00:19.6]} 28. e4 {[%clk 0:00:06]} 28... f5 {[%clk 0:00:14.3]} 29. e5
{[%clk 0:00:03.1]} 29... Qd5 {[%clk 0:00:13.1]} 30. Qg3 {[%clk 0:00:02.6]} 30...
Kh7 {[%clk 0:00:11.1]} 31. h5 {[%clk 0:00:02]} 31... Qf7 {[%clk 0:00:10]} 32.
Rxc4 {[%clk 0:00:01.7]} 32... Qxh5 {[%clk 0:00:06.6]} 33. Qh2 {[%clk 0:00:01.2]}
33... Qf7 {[%clk 0:00:06.3]} 34. Rc1 {[%clk 0:00:01.1]} 34... c4 {[%clk
0:00:04.3]} 35. Rd1 {[%clk 0:00:01.5]} 35... d3 {[%clk 0:00:04.3]} 0-1

[Event "*** Titled Tuesday Blitz"]
[Site "Chess.com"]
[Date "2020.05.12"]
[Round "10"]
[White "Alexander_Zubov"]
[Black "ElGasanov"]
[Result "0-1"]
[WhiteElo "2834"]
[BlackElo "2752"]
[TimeControl "180+1"]
[EndTime "11:54:07 PDT"]
[Termination "ElGasanov won by resignation"]

1. d4 {[%clk 0:03:00.5]} 1... d6 {[%clk 0:02:36.9]} 2. e4 {[%clk 0:02:58]} 2...
g6 {[%clk 0:02:34.9]} 3. Nf3 {[%clk 0:02:56.1]} 3... Nf6 {[%clk 0:02:34.5]} 4.
Bd3 {[%clk 0:02:50.7]} 4... Bg7 {[%clk 0:02:34.8]} 5. O-O {[%clk 0:02:50.7]}
5... O-O {[%clk 0:02:35.3]} 6. Re1 {[%clk 0:02:50.6]} 6... Nc6 {[%clk 0:02:33]}
7. d5 {[%clk 0:02:37]} 7... Nb4 {[%clk 0:02:32]} 8. Bf1 {[%clk 0:02:36]} 8... a5
{[%clk 0:02:31.4]} 9. h3 {[%clk 0:02:33.8]} 9... e6 {[%clk 0:02:28.6]} 10. c4
{[%clk 0:02:30.4]} 10... Re8 {[%clk 0:02:24.7]} 11. Nc3 {[%clk 0:02:29.5]} 11...
exd5 {[%clk 0:02:18.9]} 12. cxd5 {[%clk 0:02:28]} 12... c6 {[%clk 0:02:18.3]}
13. a3 {[%clk 0:02:20.4]} 13... Na6 {[%clk 0:02:18.4]} 14. dxc6 {[%clk
0:02:10.7]} 14... bxc6 {[%clk 0:02:18.7]} 15. e5 {[%clk 0:01:55.1]} 15... dxe5
{[%clk 0:02:17]} 16. Qxd8 {[%clk 0:01:54.7]} 16... Rxd8 {[%clk 0:02:17.4]} 17.
Nxe5 {[%clk 0:01:54.9]} 17... Re8 {[%clk 0:02:01.2]} 18. Bd2 {[%clk 0:01:24.1]}
18... Bb7 {[%clk 0:01:46.2]} 19. Na4 {[%clk 0:01:06.8]} 19... Nd5 {[%clk
0:01:40.2]} 20. Nc4 {[%clk 0:01:05.5]} 20... Nac7 {[%clk 0:01:29.1]} 21. Nxa5
{[%clk 0:00:54.2]} 21... Rxe1 {[%clk 0:01:14.5]} 22. Rxe1 {[%clk 0:00:53.4]}
22... Ba6 {[%clk 0:01:13.8]} 23. Bxa6 {[%clk 0:00:51.5]} 23... Rxa6 {[%clk
0:01:13.8]} 24. Nc5 {[%clk 0:00:51.1]} 24... Rb6 {[%clk 0:01:09.6]} 25. b4
{[%clk 0:00:47.7]} 25... f5 {[%clk 0:00:59.4]} 26. Nd7 {[%clk 0:00:43.9]} 26...
Ra6 {[%clk 0:00:57.5]} 27. Nb8 {[%clk 0:00:43.7]} 27... Ra8 {[%clk 0:00:56.7]}
28. Nbxc6 {[%clk 0:00:43.4]} 28... Nb5 {[%clk 0:00:56.1]} 29. Bc1 {[%clk
0:00:37.1]} 29... Ndc3 {[%clk 0:00:50.1]} 30. Kf1 {[%clk 0:00:30]} 30... Na2
{[%clk 0:00:48.8]} 31. Nc4 {[%clk 0:00:21.9]} 31... h6 {[%clk 0:00:40.8]} 32. g3
{[%clk 0:00:18.7]} 32... Kh7 {[%clk 0:00:36.6]} 33. h4 {[%clk 0:00:18.2]} 33...
Rc8 {[%clk 0:00:32.6]} 34. N6e5 {[%clk 0:00:18]} 34... Nxc1 {[%clk 0:00:29.9]}
35. Rxc1 {[%clk 0:00:14]} 35... Bxe5 {[%clk 0:00:30]} 36. Re1 {[%clk 0:00:12.9]}
36... Rxc4 {[%clk 0:00:27.7]} 37. Rxe5 {[%clk 0:00:12.8]} 37... Nxa3 {[%clk
0:00:28.3]} 38. Re7+ {[%clk 0:00:13.1]} 38... Kg8 {[%clk 0:00:28.2]} 39. Rb7
{[%clk 0:00:14]} 39... Kf8 {[%clk 0:00:22]} 40. Ke2 {[%clk 0:00:13.1]} 40... Nc2
{[%clk 0:00:20.9]} 41. Kd3 {[%clk 0:00:10.1]} 41... Rxb4 {[%clk 0:00:20.6]} 42.
Rh7 {[%clk 0:00:11]} 42... Ne1+ {[%clk 0:00:19.3]} 43. Ke2 {[%clk 0:00:11]}
43... Re4+ {[%clk 0:00:19.5]} 44. Kf1 {[%clk 0:00:10.7]} 44... h5 {[%clk
0:00:19.7]} 45. Rc7 {[%clk 0:00:08.5]} 45... Nd3 {[%clk 0:00:18.7]} 46. Rc3
{[%clk 0:00:07.2]} 46... Ne5 {[%clk 0:00:17.7]} 0-1

[Event "*** Titled Tuesday Blitz"]
[Site "Chess.com"]
[Date "2020.05.12"]
[Round "10"]
[White "Djager97"]
[Black "Boninknights"]
[Result "1-0"]
[WhiteElo "2434"]
[BlackElo "2262"]
[TimeControl "180+1"]
[EndTime "11:54:08 PDT"]
[Termination "Djager97 won by resignation"]

1. e4 {[%clk 0:03:00.7]} 1... Nc6 {[%clk 0:02:58.1]} 2. Nf3 {[%clk 0:03:00.3]}
2... d6 {[%clk 0:02:56.9]} 3. h3 {[%clk 0:02:56.7]} 3... Nf6 {[%clk 0:02:55]} 4.
Nc3 {[%clk 0:02:55.9]} 4... g6 {[%clk 0:02:53.1]} 5. d4 {[%clk 0:02:55.1]} 5...
Bg7 {[%clk 0:02:52.3]} 6. Be3 {[%clk 0:02:54.1]} 6... O-O {[%clk 0:02:50.3]} 7.
Qd2 {[%clk 0:02:52.8]} 7... e5 {[%clk 0:02:49.5]} 8. d5 {[%clk 0:02:50.6]} 8...
Nd4 {[%clk 0:02:48.3]} 9. Nxd4 {[%clk 0:02:43.1]} 9... exd4 {[%clk 0:02:46.7]}
10. Bxd4 {[%clk 0:02:41.5]} 10... Nxe4 {[%clk 0:02:42.7]} 11. Nxe4 {[%clk
0:02:40.6]} 11... Re8 {[%clk 0:02:40.8]} 12. f3 {[%clk 0:02:29.5]} 12... f5
{[%clk 0:02:30]} 13. Bxg7 {[%clk 0:02:23.3]} 13... Kxg7 {[%clk 0:02:27.5]} 14.
Qd4+ {[%clk 0:02:11]} 14... Kg8 {[%clk 0:02:26.5]} 15. O-O-O {[%clk 0:02:09.7]}
15... fxe4 {[%clk 0:02:23.1]} 16. fxe4 {[%clk 0:01:47.7]} 16... Qg5+ {[%clk
0:02:21.5]} 17. Kb1 {[%clk 0:01:47]} 17... Qe5 {[%clk 0:02:19.5]} 18. Qxe5
{[%clk 0:01:30]} 18... Rxe5 {[%clk 0:02:18.2]} 19. Bd3 {[%clk 0:01:30.4]} 19...
Bd7 {[%clk 0:02:14.7]} 20. Rhf1 {[%clk 0:01:28.1]} 20... Rf8 {[%clk 0:02:12.8]}
21. Rxf8+ {[%clk 0:01:25.3]} 21... Kxf8 {[%clk 0:02:12]} 22. Rf1+ {[%clk
0:01:26.2]} 22... Ke7 {[%clk 0:02:10.6]} 23. Kc1 {[%clk 0:01:23.2]} 23... g5
{[%clk 0:02:03.6]} 24. Kd2 {[%clk 0:01:19.3]} 24... Be8 {[%clk 0:02:01]} 25. Rf5
{[%clk 0:01:10.4]} 25... Rxf5 {[%clk 0:01:57.3]} 26. exf5 {[%clk 0:01:09.8]}
26... Kf6 {[%clk 0:01:56.6]} 27. Ke3 {[%clk 0:01:00.6]} 27... Ke5 {[%clk
0:01:53.5]} 28. c4 {[%clk 0:00:56.6]} 28... h5 {[%clk 0:01:49.5]} 29. g4 {[%clk
0:00:50.7]} 29... h4 {[%clk 0:01:47.2]} 30. b4 {[%clk 0:00:48]} 30... Bf7 {[%clk
0:01:33.2]} 31. a4 {[%clk 0:00:39.9]} 31... b6 {[%clk 0:01:30.3]} 32. a5 {[%clk
0:00:35.7]} 32... bxa5 {[%clk 0:01:18.6]} 33. bxa5 {[%clk 0:00:36.6]} 33... Bg8
{[%clk 0:01:17.8]} 34. Bc2 {[%clk 0:00:34.8]} 34... Bf7 {[%clk 0:01:15.5]} 35.
Ba4 {[%clk 0:00:34.8]} 35... Kf6 {[%clk 0:00:57.3]} 36. Kd4 {[%clk 0:00:33.4]}
36... Kg7 {[%clk 0:00:55.9]} 37. Bd7 {[%clk 0:00:30.8]} 37... Kf6 {[%clk
0:00:54.5]} 38. c5 {[%clk 0:00:29.2]} 38... Bg8 {[%clk 0:00:52.1]} 39. Be6
{[%clk 0:00:26.4]} 39... Bh7 {[%clk 0:00:49.5]} 40. c6 {[%clk 0:00:16.9]} 40...
Kg7 {[%clk 0:00:45.3]} 41. Kc4 {[%clk 0:00:15.9]} 41... Kf6 {[%clk 0:00:44.3]}
42. Kb5 {[%clk 0:00:15.9]} 42... Ke5 {[%clk 0:00:43.2]} 43. Ka6 {[%clk
0:00:16.2]} 43... Kf4 {[%clk 0:00:42.4]} 44. Kxa7 {[%clk 0:00:14.1]} 44... Kg3
{[%clk 0:00:41.7]} 45. Kb7 {[%clk 0:00:14.5]} 45... Kxh3 {[%clk 0:00:40.7]} 46.
a6 {[%clk 0:00:14.9]} 46... Kg3 {[%clk 0:00:39.6]} 47. a7 {[%clk 0:00:15.3]}
47... h3 {[%clk 0:00:39]} 48. a8=Q {[%clk 0:00:15.5]} 48... h2 {[%clk
0:00:38.4]} 49. Qa1 {[%clk 0:00:15.8]} 49... Kg2 {[%clk 0:00:37.1]} 50. f6
{[%clk 0:00:15.9]} 50... h1=Q {[%clk 0:00:33.5]} 51. Qxh1+ {[%clk 0:00:15.2]}
51... Kxh1 {[%clk 0:00:32.5]} 52. f7 {[%clk 0:00:16.1]} 1-0